[Event "Titled Tuesday Blitz August 09 Early 2022"]
[White "Yurovskykh, Oleksandr"]
[Black "Agasarov, Benik"]
[WhiteFideId "14134020"]
[BlackFideId "13314823"]
[WhiteElo "2292"]
[BlackElo "2152"]
[Result "1-0"]
[Round "07"]
[TimeControl "180+1"]
[Date "2022.08.09"]
[WhiteClock "0:00:14"]
[BlackClock "0:00:29"]

1. d4 {[%clk 0:03:00]}  Nf6 {[%clk 0:02:59]} 2. Nf3 {[%clk 0:02:58]}  g6 {[%clk 0:02:59]} 3. Bg5 {[%clk 0:02:57]}  Bg7 {[%clk 0:02:59]} 4. Nbd2 {[%clk 0:02:58]}  d5 {[%clk 0:02:59]} 5. e3 {[%clk 0:02:58]}  O-O {[%clk 0:02:58]} 6. Be2 {[%clk 0:02:58]}  c5 {[%clk 0:02:59]} 7. c3 {[%clk 0:02:58]}  Nc6 {[%clk 0:02:56]} 8. O-O {[%clk 0:02:58]}  cxd4 {[%clk 0:02:54]} 9. cxd4 {[%clk 0:02:57]}  Bg4 {[%clk 0:02:49]} 10. Qb3 {[%clk 0:02:56]}  Ne4 {[%clk 0:02:44]} 11. Qxb7 {[%clk 0:02:24]}  Na5 {[%clk 0:02:28]} 12. Qa6 {[%clk 0:02:21]}  Nxg5 {[%clk 0:02:14]} 13. Nxg5 {[%clk 0:02:20]}  Bxe2 {[%clk 0:02:01]} 14. Qxe2 {[%clk 0:02:21]}  e5 {[%clk 0:02:01]} 15. Ngf3 {[%clk 0:02:19]}  e4 {[%clk 0:02:01]} 16. Ne1 {[%clk 0:02:15]}  Qb6 {[%clk 0:02:02]} 17. b3 {[%clk 0:02:12]}  Rac8 {[%clk 0:02:02]} 18. g3 {[%clk 0:01:57]}  Nb7 {[%clk 0:01:57]} 19. Ng2 {[%clk 0:01:56]}  g5 {[%clk 0:01:53]} 20. Rfc1 {[%clk 0:01:53]}  Nd6 {[%clk 0:01:52]} 21. Qd1 {[%clk 0:01:49]}  Nb5 {[%clk 0:01:49]} 22. Nf1 {[%clk 0:01:01]}  h6 {[%clk 0:01:45]} 23. Qd2 {[%clk 0:00:59]}  a5 {[%clk 0:01:43]} 24. Rxc8 {[%clk 0:00:54]}  Rxc8 {[%clk 0:01:44]} 25. Rc1 {[%clk 0:00:55]}  Rc7 {[%clk 0:01:43]} 26. g4 {[%clk 0:00:49]}  Bf8 {[%clk 0:01:43]} 27. Rxc7 {[%clk 0:00:46]}  Qxc7 {[%clk 0:01:42]} 28. Ng3 {[%clk 0:00:46]}  Bb4 {[%clk 0:01:42]} 29. Qd1 {[%clk 0:00:42]}  Nc3 {[%clk 0:01:42]} 30. Qc2 {[%clk 0:00:41]}  Kh7 {[%clk 0:01:31]} 31. h4 {[%clk 0:00:37]}  Nb5 {[%clk 0:01:29]} 32. Qxc7 {[%clk 0:00:29]}  Nxc7 {[%clk 0:01:29]} 33. a4 {[%clk 0:00:25]}  Bd2 {[%clk 0:01:21]} 34. Kf1 {[%clk 0:00:19]}  Na6 {[%clk 0:01:20]} 35. Ke2 {[%clk 0:00:19]}  Bc3 {[%clk 0:01:20]} 36. h5 {[%clk 0:00:18]}  Nb4 {[%clk 0:01:17]} 37. Nf5 {[%clk 0:00:16]}  f6 {[%clk 0:01:16]} 38. Ne7 {[%clk 0:00:16]}  Kg7 {[%clk 0:01:14]} 39. f3 {[%clk 0:00:16]}  Kf7 {[%clk 0:01:12]} 40. Nf5 {[%clk 0:00:16]}  exf3+ {[%clk 0:01:11]} 41. Kxf3 {[%clk 0:00:17]}  Nd3 {[%clk 0:01:12]} 42. Nxh6+ {[%clk 0:00:17]}  Kf8 {[%clk 0:01:11]} 43. Ke2 {[%clk 0:00:14]}  Nc1+ {[%clk 0:01:11]} 44. Kd1 {[%clk 0:00:14]}  Na2 {[%clk 0:01:04]} 45. Nf5 {[%clk 0:00:15]}  Bb4 {[%clk 0:01:03]} 46. Ne1 {[%clk 0:00:12]}  Nc3+ {[%clk 0:01:03]} 47. Kc2 {[%clk 0:00:13]}  Ne4 {[%clk 0:01:02]} 48. Nd3 {[%clk 0:00:13]}  Ba3 {[%clk 0:00:58]} 49. Nc5 {[%clk 0:00:09]}  Bxc5 {[%clk 0:00:54]} 50. dxc5 {[%clk 0:00:10]}  Nxc5 {[%clk 0:00:55]} 51. Nd4 {[%clk 0:00:07]}  Ne4 {[%clk 0:00:54]} 52. Nc6 {[%clk 0:00:07]}  Nf2 {[%clk 0:00:54]} 53. Nxa5 {[%clk 0:00:08]}  Nxg4 {[%clk 0:00:54]} 54. Nc6 {[%clk 0:00:09]}  Nxe3+ {[%clk 0:00:54]} 55. Kd3 {[%clk 0:00:09]}  Nf5 {[%clk 0:00:54]} 56. Nd4 {[%clk 0:00:08]}  Nd6 {[%clk 0:00:54]} 57. a5 {[%clk 0:00:08]}  Nc8 {[%clk 0:00:51]} 58. b4 {[%clk 0:00:08]}  g4 {[%clk 0:00:49]} 59. b5 {[%clk 0:00:08]}  Kg7 {[%clk 0:00:47]} 60. b6 {[%clk 0:00:08]}  Nd6 {[%clk 0:00:46]} 61. a6 {[%clk 0:00:08]}  g3 {[%clk 0:00:46]} 62. Ke3 {[%clk 0:00:09]}  Nc4+ {[%clk 0:00:46]} 63. Kf3 {[%clk 0:00:09]}  Nxb6 {[%clk 0:00:47]} 64. Kxg3 {[%clk 0:00:08]}  Kh6 {[%clk 0:00:45]} 65. Kg4 {[%clk 0:00:07]}  Nc4 {[%clk 0:00:45]} 66. Nf5+ {[%clk 0:00:08]}  Kh7 {[%clk 0:00:45]} 67. a7 {[%clk 0:00:08]}  Nb6 {[%clk 0:00:45]} 68. Kf4 {[%clk 0:00:08]}  Kg8 {[%clk 0:00:45]} 69. Ke3 {[%clk 0:00:09]}  Kf7 {[%clk 0:00:44]} 70. Kd4 {[%clk 0:00:09]}  Ke6 {[%clk 0:00:45]} 71. h6 {[%clk 0:00:10]}  Kf7 {[%clk 0:00:44]} 72. h7 {[%clk 0:00:10]}  Nc8 {[%clk 0:00:42]} 73. h8=Q {[%clk 0:00:09]}  Nxa7 {[%clk 0:00:43]} 74. Qg7+ {[%clk 0:00:09]}  Ke6 {[%clk 0:00:43]} 75. Ne3 {[%clk 0:00:10]}  Nc6+ {[%clk 0:00:43]} 76. Kd3 {[%clk 0:00:10]}  Ne5+ {[%clk 0:00:43]} 77. Ke2 {[%clk 0:00:11]}  d4 {[%clk 0:00:43]} 78. Qg8+ {[%clk 0:00:11]}  Ke7 {[%clk 0:00:43]} 79. Nf5+ {[%clk 0:00:12]}  Kd7 {[%clk 0:00:43]} 80. Nxd4 {[%clk 0:00:12]}  Kd6 {[%clk 0:00:42]} 81. Qe6+ {[%clk 0:00:13]}  Kc5 {[%clk 0:00:41]} 82. Nf5 {[%clk 0:00:14]}  Ng4 {[%clk 0:00:40]} 83. Ne3 {[%clk 0:00:12]}  Ne5 {[%clk 0:00:39]} 84. Qxf6 {[%clk 0:00:11]}  Nc6 {[%clk 0:00:39]} 85. Qf5+ {[%clk 0:00:11]}  Kb6 {[%clk 0:00:39]} 86. Nc4+ {[%clk 0:00:12]}  Ka6 {[%clk 0:00:38]} 87. Qc5 {[%clk 0:00:11]}  Nd4+ {[%clk 0:00:30]} 88. Qxd4 {[%clk 0:00:11]}  Kb5 {[%clk 0:00:30]} 89. Qb6+ {[%clk 0:00:11]}  Kxc4 {[%clk 0:00:31]} 90. Qd6 {[%clk 0:00:11]}  Kb3 {[%clk 0:00:31]} 91. Kd3 {[%clk 0:00:12]}  Ka2 {[%clk 0:00:31]} 92. Qb8 {[%clk 0:00:13]}  Ka1 {[%clk 0:00:30]} 93. Kc3 {[%clk 0:00:13]}  Ka2 {[%clk 0:00:29]} 94. Qb2# {[%clk 0:00:14]} 1-0


[Site "https://www.chess.com"]

[Event "Titled Tuesday Blitz August 09 Early 2022"]
[White "Aldokhin, Ivan"]
[Black "Lagno, Kateryna"]
[WhiteFideId "24115720"]
[BlackFideId "14109336"]
[WhiteElo "2630"]
[BlackElo "2773"]
[Result "1-0"]
[Round "08"]
[TimeControl "180+1"]
[Date "2022.08.09"]
[WhiteClock "0:00:04"]
[BlackClock "0:00:08"]

1. e4 {[%clk 0:03:00]}  e5 {[%clk 0:03:00]} 2. Nf3 {[%clk 0:03:01]}  Nc6 {[%clk 0:03:00]} 3. Bb5 {[%clk 0:03:01]}  a6 {[%clk 0:03:00]} 4. Ba4 {[%clk 0:03:01]}  d6 {[%clk 0:03:01]} 5. Bxc6+ {[%clk 0:02:59]}  bxc6 {[%clk 0:03:00]} 6. d4 {[%clk 0:03:00]}  exd4 {[%clk 0:02:47]} 7. Qxd4 {[%clk 0:02:54]}  Nf6 {[%clk 0:02:45]} 8. Nc3 {[%clk 0:02:53]}  Be7 {[%clk 0:02:42]} 9. O-O {[%clk 0:02:48]}  O-O {[%clk 0:02:41]} 10. Bf4 {[%clk 0:02:48]}  Rb8 {[%clk 0:02:34]} 11. b3 {[%clk 0:02:33]}  Nd7 {[%clk 0:02:24]} 12. Rad1 {[%clk 0:01:49]}  Nc5 {[%clk 0:02:23]} 13. Bg3 {[%clk 0:01:25]}  Bg4 {[%clk 0:02:20]} 14. Qc4 {[%clk 0:01:01]}  Bxf3 {[%clk 0:02:07]} 15. gxf3 {[%clk 0:00:59]}  Qc8 {[%clk 0:02:05]} 16. b4 {[%clk 0:00:43]}  Ne6 {[%clk 0:02:01]} 17. Qxc6 {[%clk 0:00:39]}  Ng5 {[%clk 0:02:00]} 18. f4 {[%clk 0:00:26]}  Nh3+ {[%clk 0:01:33]} 19. Kg2 {[%clk 0:00:26]}  Qg4 {[%clk 0:01:19]} 20. Nd5 {[%clk 0:00:26]}  Bd8 {[%clk 0:01:13]} 21. f3 {[%clk 0:00:25]}  Qh5 {[%clk 0:01:14]} 22. Qd7 {[%clk 0:00:24]}  f5 {[%clk 0:01:07]} 23. e5 {[%clk 0:00:20]}  dxe5 {[%clk 0:00:49]} 24. fxe5 {[%clk 0:00:20]}  Bg5 {[%clk 0:00:45]} 25. f4 {[%clk 0:00:17]}  Rbd8 {[%clk 0:00:44]} 26. Qe6+ {[%clk 0:00:14]}  Kh8 {[%clk 0:00:44]} 27. fxg5 {[%clk 0:00:14]}  Nxg5 {[%clk 0:00:45]} 28. Qe7 {[%clk 0:00:09]}  Qh3+ {[%clk 0:00:44]} 29. Kh1 {[%clk 0:00:07]}  Ne4 {[%clk 0:00:45]} 30. Qh4 {[%clk 0:00:04]}  Qxh4 {[%clk 0:00:25]} 31. Bxh4 {[%clk 0:00:05]}  Rde8 {[%clk 0:00:26]} 32. Nxc7 {[%clk 0:00:05]}  Rxe5 {[%clk 0:00:26]} 33. Rd5 {[%clk 0:00:06]}  Rxd5 {[%clk 0:00:22]} 34. Nxd5 {[%clk 0:00:06]}  g5 {[%clk 0:00:23]} 35. Bf2 {[%clk 0:00:06]}  f4 {[%clk 0:00:19]} 36. Bd4+ {[%clk 0:00:06]}  Kg8 {[%clk 0:00:20]} 37. c4 {[%clk 0:00:06]}  Nd2 {[%clk 0:00:16]} 38. Rc1 {[%clk 0:00:05]}  f3 {[%clk 0:00:17]} 39. Be3 {[%clk 0:00:03]}  Ne4 {[%clk 0:00:17]} 40. Rf1 {[%clk 0:00:02]}  g4 {[%clk 0:00:16]} 41. Rg1 {[%clk 0:00:01]}  h5 {[%clk 0:00:15]} 42. Rc1 {[%clk 0:00:02]}  h4 {[%clk 0:00:14]} 43. Rg1 {[%clk 0:00:01]}  g3 {[%clk 0:00:15]} 44. hxg3 {[%clk 0:00:01]}  hxg3 {[%clk 0:00:16]} 45. Bf4 {[%clk 0:00:02]}  f2 {[%clk 0:00:14]} 46. Rf1 {[%clk 0:00:02]}  Kf7 {[%clk 0:00:14]} 47. Kg2 {[%clk 0:00:02]}  Kg6 {[%clk 0:00:14]} 48. Kf3 {[%clk 0:00:03]}  Nd2+ {[%clk 0:00:13]} 49. Kg2 {[%clk 0:00:03]}  Nxf1 {[%clk 0:00:13]} 50. Kxf1 {[%clk 0:00:04]}  Kf5 {[%clk 0:00:09]} 51. Bxg3 {[%clk 0:00:04]}  Ke4 {[%clk 0:00:09]} 52. Bxf2 {[%clk 0:00:01]}  Kd3 {[%clk 0:00:10]} 53. c5 {[%clk 0:00:02]}  Kc4 {[%clk 0:00:11]} 54. Ne7 {[%clk 0:00:02]}  Re8 {[%clk 0:00:09]} 55. Bh4 {[%clk 0:00:02]}  Kb5 {[%clk 0:00:09]} 56. c6 {[%clk 0:00:02]}  Kb6 {[%clk 0:00:09]} 57. Ke2 {[%clk 0:00:03]}  Rh8 {[%clk 0:00:07]} 58. Bf6 {[%clk 0:00:03]}  Rh2+ {[%clk 0:00:07]} 59. Kd3 {[%clk 0:00:03]}  Rxa2 {[%clk 0:00:08]} 60. Bd4+ {[%clk 0:00:02]}  Kc7 {[%clk 0:00:08]} 61. Be5+ {[%clk 0:00:02]}  Kb6 {[%clk 0:00:09]} 62. c7 {[%clk 0:00:03]}  Ra3+ {[%clk 0:00:09]} 63. Kc4 {[%clk 0:00:03]}  Ra1 {[%clk 0:00:09]} 64. c8=Q {[%clk 0:00:03]}  Rc1+ {[%clk 0:00:09]} 65. Bc3 {[%clk 0:00:04]}  a5 {[%clk 0:00:08]} 66. Qc6+ {[%clk 0:00:04]} 1-0


[Site "https://www.chess.com"]

[Event "Titled Tuesday Blitz August 09 Early 2022"]
[White "Antonio, Rogelio Jr"]
[Black "Shimanov, Aleksandr"]
[WhiteFideId "5200032"]
[BlackFideId "4198603"]
[WhiteElo "2733"]
[BlackElo "2897"]
[Result "0-1"]
[Round "08"]
[TimeControl "180+1"]
[Date "2022.08.09"]
[WhiteClock "0:00:12"]
[BlackClock "0:00:05"]

1. e4 {[%clk 0:03:00]}  d5 {[%clk 0:02:59]} 2. exd5 {[%clk 0:03:00]}  Qxd5 {[%clk 0:03:00]} 3. Nc3 {[%clk 0:02:59]}  Qe5+ {[%clk 0:03:00]} 4. Nge2 {[%clk 0:02:57]}  Nf6 {[%clk 0:02:59]} 5. d4 {[%clk 0:02:57]}  Qa5 {[%clk 0:02:59]} 6. Ng3 {[%clk 0:02:47]}  h5 {[%clk 0:02:56]} 7. Bd2 {[%clk 0:02:40]}  h4 {[%clk 0:02:52]} 8. Nge4 {[%clk 0:02:40]}  c6 {[%clk 0:02:47]} 9. Nxf6+ {[%clk 0:02:38]}  gxf6 {[%clk 0:02:48]} 10. Bc4 {[%clk 0:02:34]}  Nd7 {[%clk 0:02:43]} 11. Qe2 {[%clk 0:02:32]}  Nb6 {[%clk 0:02:41]} 12. Nd5 {[%clk 0:02:26]}  cxd5 {[%clk 0:02:40]} 13. Bxa5 {[%clk 0:02:20]}  Nxc4 {[%clk 0:02:40]} 14. Bc3 {[%clk 0:02:18]}  Bd7 {[%clk 0:02:32]} 15. O-O-O {[%clk 0:02:13]}  Rc8 {[%clk 0:02:30]} 16. Kb1 {[%clk 0:02:12]}  Bf5 {[%clk 0:02:22]} 17. Rhe1 {[%clk 0:02:04]}  e6 {[%clk 0:02:22]} 18. Qf3 {[%clk 0:02:04]}  Kd7 {[%clk 0:02:22]} 19. g4 {[%clk 0:01:57]}  hxg3 {[%clk 0:02:21]} 20. hxg3 {[%clk 0:01:56]}  Be7 {[%clk 0:02:21]} 21. g4 {[%clk 0:01:56]}  Bg6 {[%clk 0:02:20]} 22. Qg3 {[%clk 0:01:52]}  b5 {[%clk 0:02:14]} 23. f4 {[%clk 0:01:46]}  Nd6 {[%clk 0:02:10]} 24. f5 {[%clk 0:01:36]}  exf5 {[%clk 0:02:05]} 25. Rxe7+ {[%clk 0:01:34]}  Kxe7 {[%clk 0:02:06]} 26. Bb4 {[%clk 0:01:34]}  Rc6 {[%clk 0:02:05]} 27. Re1+ {[%clk 0:01:33]}  Kd7 {[%clk 0:02:05]} 28. Qa3 {[%clk 0:01:32]}  Nc8 {[%clk 0:02:04]} 29. Qf3 {[%clk 0:01:26]}  Nb6 {[%clk 0:00:12]} 30. gxf5 {[%clk 0:01:21]}  Bh5 {[%clk 0:00:13]} 31. Qa3 {[%clk 0:01:13]}  Nc8 {[%clk 0:00:11]} 32. b3 {[%clk 0:00:57]}  Bg4 {[%clk 0:00:11]} 33. Rf1 {[%clk 0:00:44]}  Rh2 {[%clk 0:00:10]} 34. Bc5 {[%clk 0:00:44]}  Be2 {[%clk 0:00:09]} 35. Re1 {[%clk 0:00:38]}  Bf3 {[%clk 0:00:07]} 36. Qb4 {[%clk 0:00:35]}  a6 {[%clk 0:00:06]} 37. Qc3 {[%clk 0:00:32]}  Be4 {[%clk 0:00:06]} 38. Rxe4 {[%clk 0:00:31]}  dxe4 {[%clk 0:00:07]} 39. Qg3 {[%clk 0:00:31]}  Rh1+ {[%clk 0:00:07]} 40. Kb2 {[%clk 0:00:31]}  Nd6 {[%clk 0:00:07]} 41. Qg7 {[%clk 0:00:27]}  e3 {[%clk 0:00:05]} 42. Qg2 {[%clk 0:00:26]}  Rh8 {[%clk 0:00:04]} 43. Qd5 {[%clk 0:00:16]}  Re8 {[%clk 0:00:04]} 44. Bxd6 {[%clk 0:00:16]}  Rxd6 {[%clk 0:00:05]} 45. Qb7+ {[%clk 0:00:16]}  Kd8 {[%clk 0:00:05]} 46. Qb8+ {[%clk 0:00:13]}  Ke7 {[%clk 0:00:06]} 47. Qc7+ {[%clk 0:00:13]}  Rd7 {[%clk 0:00:07]} 48. Qc5+ {[%clk 0:00:13]}  Kd8 {[%clk 0:00:07]} 49. d5 {[%clk 0:00:12]}  e2 {[%clk 0:00:07]} 50. d6 {[%clk 0:00:12]}  Rb7 {[%clk 0:00:05]} 0-1


[Site "https://www.chess.com"]

[Event "Titled Tuesday Blitz August 09 Early 2022"]
[White "Averjanov, Alexey"]
[Black "Maiorov, Nikita"]
[WhiteFideId "14109867"]
[BlackFideId "13501720"]
[WhiteElo "2650"]
[BlackElo "2590"]
[Result "0-1"]
[Round "08"]
[TimeControl "180+1"]
[Date "2022.08.09"]
[WhiteClock "0:01:25"]
[BlackClock "0:01:11"]

1. d4 {[%clk 0:03:00]}  Nf6 {[%clk 0:02:57]} 2. c4 {[%clk 0:03:00]}  e6 {[%clk 0:02:57]} 3. Nf3 {[%clk 0:02:59]}  d5 {[%clk 0:02:56]} 4. e3 {[%clk 0:02:59]}  b6 {[%clk 0:02:54]} 5. Nbd2 {[%clk 0:02:59]}  Bb7 {[%clk 0:02:54]} 6. Bd3 {[%clk 0:02:59]}  Bd6 {[%clk 0:02:54]} 7. O-O {[%clk 0:02:59]}  O-O {[%clk 0:02:54]} 8. Qe2 {[%clk 0:03:00]}  Ne4 {[%clk 0:02:52]} 9. b3 {[%clk 0:03:00]}  Nd7 {[%clk 0:02:52]} 10. Bb2 {[%clk 0:03:00]}  f5 {[%clk 0:02:50]} 11. cxd5 {[%clk 0:03:00]}  exd5 {[%clk 0:02:49]} 12. Ne5 {[%clk 0:03:00]}  Qe7 {[%clk 0:02:46]} 13. f4 {[%clk 0:02:58]}  Ndf6 {[%clk 0:02:45]} 14. Ndf3 {[%clk 0:02:55]}  Kh8 {[%clk 0:02:44]} 15. Rac1 {[%clk 0:02:51]}  a5 {[%clk 0:02:40]} 16. a4 {[%clk 0:02:50]}  Rac8 {[%clk 0:02:37]} 17. Rc2 {[%clk 0:02:46]}  c6 {[%clk 0:02:36]} 18. Rfc1 {[%clk 0:02:43]}  Bb4 {[%clk 0:02:36]} 19. Ba6 {[%clk 0:02:37]}  Bxa6 {[%clk 0:02:30]} 20. Qxa6 {[%clk 0:02:38]}  c5 {[%clk 0:01:52]} 21. Qxb6 {[%clk 0:02:37]}  Ng4 {[%clk 0:01:41]} 22. Re2 {[%clk 0:02:14]}  cxd4 {[%clk 0:01:35]} 23. Rxc8 {[%clk 0:02:09]}  Rxc8 {[%clk 0:01:34]} 24. Nxg4 {[%clk 0:02:02]}  d3 {[%clk 0:01:30]} 25. Qh6 {[%clk 0:01:34]}  dxe2 {[%clk 0:01:18]} 26. Nge5 {[%clk 0:01:30]}  Rc1+ {[%clk 0:01:12]} 27. Bxc1 {[%clk 0:01:27]}  gxh6 {[%clk 0:01:11]} 28. Bb2 {[%clk 0:01:25]}  Bc3 {[%clk 0:01:11]} 0-1


[Site "https://www.chess.com"]

[Event "Titled Tuesday Blitz August 09 Early 2022"]
[White "Bashirli, Saadat"]
[Black "Locci, Damiano"]
[WhiteFideId "13429990"]
[BlackFideId "819751"]
[WhiteElo "1173"]
[BlackElo "2365"]
[Result "1-0"]
[Round "08"]
[TimeControl "180+1"]
[Date "2022.08.09"]
[WhiteClock "0:00:09"]
[BlackClock "0:00:04"]

1. d4 {[%clk 0:03:00]}  d5 {[%clk 0:02:53]} 2. Bg5 {[%clk 0:02:59]}  Nf6 {[%clk 0:02:51]} 3. Nd2 {[%clk 0:02:52]}  c6 {[%clk 0:02:50]} 4. e3 {[%clk 0:02:51]}  Ne4 {[%clk 0:02:49]} 5. Nxe4 {[%clk 0:02:49]}  dxe4 {[%clk 0:02:49]} 6. Bc4 {[%clk 0:02:39]}  Qa5+ {[%clk 0:02:49]} 7. c3 {[%clk 0:02:24]}  Qxg5 {[%clk 0:02:50]} 8. g3 {[%clk 0:02:23]}  e6 {[%clk 0:02:39]} 9. Ne2 {[%clk 0:02:13]}  Bd6 {[%clk 0:02:39]} 10. Qc2 {[%clk 0:02:10]}  Qg6 {[%clk 0:02:28]} 11. O-O-O {[%clk 0:02:08]}  Nd7 {[%clk 0:02:26]} 12. Rdg1 {[%clk 0:02:03]}  Nb6 {[%clk 0:02:23]} 13. Bb3 {[%clk 0:02:03]}  a5 {[%clk 0:02:24]} 14. a3 {[%clk 0:02:01]}  Bd7 {[%clk 0:02:18]} 15. h4 {[%clk 0:01:57]}  f5 {[%clk 0:02:14]} 16. Nf4 {[%clk 0:01:45]}  Bxf4 {[%clk 0:02:13]} 17. gxf4 {[%clk 0:01:46]}  Qf6 {[%clk 0:02:10]} 18. Rh3 {[%clk 0:01:40]}  O-O-O {[%clk 0:02:07]} 19. Rhg3 {[%clk 0:01:39]}  Rhg8 {[%clk 0:02:02]} 20. h5 {[%clk 0:01:35]}  Be8 {[%clk 0:01:57]} 21. Rg5 {[%clk 0:01:16]}  h6 {[%clk 0:01:46]} 22. Rg6 {[%clk 0:01:16]}  Bxg6 {[%clk 0:01:46]} 23. Rxg6 {[%clk 0:01:17]}  Qh4 {[%clk 0:01:41]} 24. Bxe6+ {[%clk 0:01:16]}  Kb8 {[%clk 0:01:41]} 25. Bxg8 {[%clk 0:01:14]}  Rxg8 {[%clk 0:01:41]} 26. Qb3 {[%clk 0:01:04]}  Nd5 {[%clk 0:01:41]} 27. Rxc6 {[%clk 0:01:05]}  Qh1+ {[%clk 0:01:34]} 28. Kc2 {[%clk 0:00:55]}  Rd8 {[%clk 0:01:30]} 29. Rc5 {[%clk 0:00:51]}  Nc7 {[%clk 0:01:16]} 30. Qb6 {[%clk 0:00:41]}  Rd7 {[%clk 0:00:58]} 31. Rxa5 {[%clk 0:00:35]}  Qxh5 {[%clk 0:00:50]} 32. Qa7+ {[%clk 0:00:22]}  Kc8 {[%clk 0:00:49]} 33. Rc5 {[%clk 0:00:23]}  Qe2+ {[%clk 0:00:45]} 34. Kb3 {[%clk 0:00:23]}  Re7 {[%clk 0:00:19]} 35. Qa8+ {[%clk 0:00:19]}  Kd7 {[%clk 0:00:19]} 36. Qxb7 {[%clk 0:00:20]}  Qd1+ {[%clk 0:00:19]} 37. Ka2 {[%clk 0:00:17]}  Ke8 {[%clk 0:00:17]} 38. Rxc7 {[%clk 0:00:16]}  Rxc7 {[%clk 0:00:17]} 39. Qxc7 {[%clk 0:00:17]}  Kf8 {[%clk 0:00:16]} 40. Qd7 {[%clk 0:00:16]}  h5 {[%clk 0:00:16]} 41. Qxf5+ {[%clk 0:00:16]}  Ke7 {[%clk 0:00:17]} 42. Qxe4+ {[%clk 0:00:17]}  Kf6 {[%clk 0:00:17]} 43. Qe5+ {[%clk 0:00:17]}  Kf7 {[%clk 0:00:17]} 44. Qf5+ {[%clk 0:00:17]}  Kg8 {[%clk 0:00:17]} 45. Qe6+ {[%clk 0:00:17]}  Kh7 {[%clk 0:00:17]} 46. Qf5+ {[%clk 0:00:17]}  Kh6 {[%clk 0:00:17]} 47. Qh3 {[%clk 0:00:18]}  Qe2 {[%clk 0:00:13]} 48. Qe6+ {[%clk 0:00:15]}  g6 {[%clk 0:00:13]} 49. f5 {[%clk 0:00:14]}  Qg4 {[%clk 0:00:12]} 50. e4 {[%clk 0:00:07]}  h4 {[%clk 0:00:12]} 51. Qg8 {[%clk 0:00:06]}  h3 {[%clk 0:00:08]} 52. f6 {[%clk 0:00:05]}  h2 {[%clk 0:00:04]} 53. Qh8+ {[%clk 0:00:05]}  Kg5 {[%clk 0:00:04]} 54. Qxh2 {[%clk 0:00:05]}  Kxf6 {[%clk 0:00:04]} 55. Qe5+ {[%clk 0:00:05]}  Kf7 {[%clk 0:00:04]} 56. f4 {[%clk 0:00:05]}  Qd1 {[%clk 0:00:04]} 57. Qd5+ {[%clk 0:00:05]}  Kg7 {[%clk 0:00:05]} 58. f5 {[%clk 0:00:06]}  Qf1 {[%clk 0:00:06]} 59. fxg6 {[%clk 0:00:05]}  Kxg6 {[%clk 0:00:06]} 60. e5 {[%clk 0:00:06]}  Qf2 {[%clk 0:00:04]} 61. Qd6+ {[%clk 0:00:07]}  Kg5 {[%clk 0:00:04]} 62. e6 {[%clk 0:00:07]}  Qf1 {[%clk 0:00:04]} 63. Qd5+ {[%clk 0:00:06]}  Kf6 {[%clk 0:00:03]} 64. Qe5+ {[%clk 0:00:06]}  Ke7 {[%clk 0:00:04]} 65. Kb3 {[%clk 0:00:06]}  Qd1+ {[%clk 0:00:03]} 66. Kc4 {[%clk 0:00:06]}  Qf1+ {[%clk 0:00:04]} 67. Kd5 {[%clk 0:00:06]}  Qh1+ {[%clk 0:00:04]} 68. Kc5 {[%clk 0:00:05]}  Qc1 {[%clk 0:00:03]} 69. Qd6+ {[%clk 0:00:04]}  Kf6 {[%clk 0:00:04]} 70. e7+ {[%clk 0:00:05]}  Kf5 {[%clk 0:00:04]} 71. e8=Q {[%clk 0:00:04]}  Qh1 {[%clk 0:00:04]} 72. Qee5+ {[%clk 0:00:04]}  Kg4 {[%clk 0:00:04]} 73. Qg6+ {[%clk 0:00:04]}  Kf3 {[%clk 0:00:04]} 74. Qef5+ {[%clk 0:00:04]}  Ke2 {[%clk 0:00:05]} 75. Qge6+ {[%clk 0:00:04]}  Kd2 {[%clk 0:00:05]} 76. Qfe4 {[%clk 0:00:05]}  Qh5+ {[%clk 0:00:05]} 77. Q4e5 {[%clk 0:00:05]}  Qh1 {[%clk 0:00:04]} 78. d5 {[%clk 0:00:05]}  Kc2 {[%clk 0:00:04]} 79. Qd4 {[%clk 0:00:06]}  Kb3 {[%clk 0:00:05]} 80. d6+ {[%clk 0:00:05]}  Kxb2 {[%clk 0:00:04]} 81. d7 {[%clk 0:00:06]}  Qh5+ {[%clk 0:00:04]} 82. Qed5 {[%clk 0:00:07]}  Qh8 {[%clk 0:00:03]} 83. d8=Q {[%clk 0:00:08]}  Qxd8 {[%clk 0:00:03]} 84. Qxd8 {[%clk 0:00:08]}  Kxa3 {[%clk 0:00:04]} 85. c4 {[%clk 0:00:09]} 1-0


[Site "https://www.chess.com"]

[Event "Titled Tuesday Blitz August 09 Early 2022"]
[White "Belov, Vladimir"]
[Black "Danielyan, Vahe"]
[WhiteFideId "4132394"]
[BlackFideId "13304828"]
[WhiteElo "2791"]
[BlackElo "2548"]
[Result "1-0"]
[Round "08"]
[TimeControl "180+1"]
[Date "2022.08.09"]
[WhiteClock "0:01:44"]
[BlackClock "0:01:15"]

1. e4 {[%clk 0:03:00]}  d5 {[%clk 0:02:59]} 2. exd5 {[%clk 0:03:00]}  Qxd5 {[%clk 0:03:00]} 3. Nc3 {[%clk 0:03:01]}  Qe5+ {[%clk 0:03:01]} 4. Be2 {[%clk 0:02:59]}  Bg4 {[%clk 0:03:01]} 5. d4 {[%clk 0:02:59]}  Bxe2 {[%clk 0:03:01]} 6. Ngxe2 {[%clk 0:02:58]}  Qa5 {[%clk 0:03:01]} 7. O-O {[%clk 0:02:56]}  Nf6 {[%clk 0:03:01]} 8. d5 {[%clk 0:02:45]}  c6 {[%clk 0:02:58]} 9. Nf4 {[%clk 0:02:44]}  cxd5 {[%clk 0:02:44]} 10. b4 {[%clk 0:02:28]}  Qd8 {[%clk 0:02:21]} 11. Ncxd5 {[%clk 0:02:26]}  Nxd5 {[%clk 0:02:19]} 12. Nxd5 {[%clk 0:02:24]}  e6 {[%clk 0:02:19]} 13. Re1 {[%clk 0:02:25]}  Bd6 {[%clk 0:02:16]} 14. Bb2 {[%clk 0:02:06]}  h5 {[%clk 0:01:21]} 15. Bxg7 {[%clk 0:01:56]}  Rg8 {[%clk 0:01:16]} 16. Nf6+ {[%clk 0:01:56]}  Ke7 {[%clk 0:01:17]} 17. Nxg8+ {[%clk 0:01:49]}  Qxg8 {[%clk 0:01:15]} 18. Bf6+ {[%clk 0:01:44]} 1-0


[Site "https://www.chess.com"]